bitfinex/quotes_ETHUSD_20241207
["timestamp","ask_amount","ask_price","bid_price","bid_amount"]
[1733529601348,1.28965986,3999.6,3999.3,1.85029458]
[1733529601672,1.0398409,3999.7,3999.3,1.85029458]
[1733529601829,1.28970685,3999.6,3999.3,1.85029458]
[1733529602029,1.0398409,3999.7,3999.3,1.85029458]
[1733529602447,1.28965291,3999.6,3999.3,1.85029458]
[1733529602630,1.0398409,3999.7,3999.3,1.85029458]
[1733529602835,1.28971172,3999.6,3999.3,1.85029458]
[1733529603032,1.0398409,3999.7,3999.3,1.85029458]
[1733529603237,1.28966609,3999.6,3999.3,1.85029458]
[1733529603442,1.0398409,3999.7,3999.3,1.85029458]
[1733529603738,1.28955955,3999.6,3999.3,1.85029458]
[1733529604054,1.28953676,3999.5,3999.3,1.85029458]
[1733529604240,1.0398409,3999.6,3999.3,1.85029458]
[1733529604881,1.28954342,3999.5,3999.3,1.85029458]
[1733529605076,1.0398409,3999.6,3999.3,1.85029458]
[1733529605281,1.28946465,3999.5,3999.3,1.85029458]
[1733529605444,1.0398409,3999.6,3999.3,1.85029458]
[1733529605954,1.28951973,3999.5,3999.3,1.85029458]
[1733529606276,1.0398409,3999.6,3999.3,1.85029458]
[1733529606589,2.3293816,3999.5,3999.3,1.85029458]
[1733529606882,2.3293816,3999.5,3999.0,0.1375631]
[1733529606883,2.51500973,3999.4,3999.0,0.1375631]
[1733529607084,1.0398409,3999.1,3999.0,0.1375631]
[1733529607286,1.28947777,3999.1,3999.0,0.1375631]
[1733529607581,2.14898864,3999.1,3999.0,0.1375631]
[1733529607790,3.89392567,3999.1,3998.4,0.7682]
[1733529608089,1.03940937,3998.8,3998.4,0.7682]
[1733529608243,0.85951087,3998.7,3998.4,0.7682]
[1733529608583,1.03940937,3998.8,3998.4,0.7682]
[1733529608783,2.1482273,3998.7,3998.4,0.7682]
[1733529608979,0.85930865,3998.6,3998.4,0.7682]
[1733529609149,1.03940937,3998.7,3998.4,0.7682]
[1733529609343,1.55911405,3998.9,3998.0,1.07859458]
[1733529609344,0.8592928,3998.6,3998.1,0.7682]
[1733529609547,1.03940937,3998.7,3998.1,0.7682]
[1733529609761,0.85889543,3998.6,3998.1,0.7682]
[1733529609976,1.03940937,3998.7,3998.1,0.7682]
[1733529610181,2.14729905,3998.6,3998.1,0.7682]
[1733529610357,1.03940937,3998.8,3998.1,0.7682]
[1733529610557,2.14657947,3998.7,3998.1,0.7682]
[1733529610793,0.85863179,3998.6,3998.1,0.7682]
[1733529610997,1.03940937,3998.8,3998.1,0.7682]
[1733529611301,2.14658648,3998.7,3998.1,0.7682]
[1733529611458,0.85840527,3998.6,3998.1,0.7682]
[1733529611803,0.7858,3998.7,3998.1,0.7682]
[1733529612014,0.85840564,3998.6,3998.1,0.7682]
[1733529612308,1.22476784,3998.8,3998.1,0.7682]
[1733529612498,2.14548231,3998.7,3998.3,1.07859458]
[1733529612672,1.03940937,3998.8,3998.3,1.07859458]
[1733529612996,0.18536726,3998.9,3998.6,1.07859458]
[1733529613300,1.03940937,3999.0,3998.6,1.07859458]
[1733529613508,0.85837624,3998.9,3998.7,0.7827]
[1733529613670,1.55911405,3999.2,3998.9,1.07859458]
[1733529613671,1.03940937,3999.2,3998.9,1.07859458]
[1733529613867,7.53940937,3999.6,3998.9,1.07859458]
[1733529614067,2.1468257,3999.5,3999.2,1.07859458]
[1733529614298,1.03940937,3999.7,3999.3,0.7827]
[1733529614497,1.22493454,3999.8,3999.3,0.7827]
[1733529614703,1.22495182,3999.9,3999.3,0.7827]
[1733529614864,3.1866689,3999.8,3999.3,0.7827]
[1733529615064,0.85890833,3999.7,3999.3,0.7827]
[1733529615303,1.03940937,3999.8,3999.5,1.07859458]
[1733529615504,1.03940937,3999.9,3999.5,1.07859458]
[1733529615662,2.1446722,3999.8,3999.5,1.07859458]
[1733529615865,1.03940937,3999.9,3999.5,1.07859458]
[1733529616167,1.03940937,4000.0,3999.5,1.07859458]
[1733529616364,2.51330883,3999.9,3999.5,1.07859458]
[1733529616676,2.0791201,4000.3,3999.1,1.07859458]
[1733529616677,0.7858,3999.7,3999.1,1.07859458]
[1733529616883,2.51323161,3999.8,3999.1,1.07859458]
[1733529616884,1.03940937,3999.8,3999.1,1.07859458]
[1733529617182,1.03940937,3999.8,3999.2,0.7827]
[1733529617487,1.03940937,4000.0,3999.4,1.07859458]
[1733529617805,1.03940937,4000.1,3999.4,1.07859458]
[1733529617969,1.28839186,4000.0,3999.4,1.07859458]
[1733529618299,1.03940937,4000.1,3999.4,1.07859458]
[1733529618505,1.03940937,4000.2,3999.4,1.07859458]
[1733529618799,1.28835244,4000.1,3999.7,1.07859458]
[1733529619106,1.03940937,4000.2,3999.7,1.07859458]
[1733529619290,1.03940937,4000.3,3999.7,1.07859458]
[1733529619488,2.513042,4000.2,3999.7,1.07859458]
[1733529619703,1.03940937,4000.2,3999.7,1.07859458]
[1733529620001,1.22491386,4000.3,3999.7,1.07859458]
[1733529620201,1.22491386,4000.4,3999.7,1.98962828]
[1733529620405,1.03940937,4000.4,3999.7,1.98962828]
[1733529620577,1.28813319,4000.3,3999.7,1.98962828]
[1733529620778,1.03940937,4000.4,3999.7,1.98962828]
[1733529620986,1.28811314,4000.3,3999.7,1.98962828]
[1733529621184,1.28795783,4000.2,3999.7,0.7827]
[1733529621402,1.28794969,4000.1,3999.7,0.7827]
[1733529621699,1.03940937,4000.2,3999.7,0.7827]
[1733529621904,1.22486176,4000.3,3999.7,0.7827]
[1733529622115,1.28805197,4000.2,3999.7,0.7827]
[1733529622415,1.03940937,4000.3,3999.7,0.7827]
[1733529622705,1.03940937,4000.4,3999.7,0.7827]
[1733529622908,1.28910711,4000.3,3999.7,0.7827]
[1733529623073,1.03940937,4000.4,3999.7,0.7827]
[1733529623274,1.28906628,4000.3,3999.7,2.06789828]
[1733529623615,1.03940937,4000.5,3999.7,2.06789828]
[1733529623925,8.05911405,4000.7,3999.7,2.06789828]
[1733529623926,1.03940937,4000.6,4000.1,0.7827]
[1733529624491,1.55911405,4000.8,4000.1,0.7827]
[1733529624492,1.03940937,4000.8,4000.1,0.7827]
[1733529624803,1.03940937,4000.8,4000.3,1.07859458]
[1733529624971,1.03940937,4000.9,4000.4,0.7827]
[1733529625172,0.7858,4000.8,4000.0,0.7827]
[1733529625373,1.03940937,4000.6,4000.0,0.7827]
[1733529625610,2.32831612,4000.5,4000.0,0.7827]
[1733529625788,1.03940937,4000.7,4000.0,0.7827]
[1733529626388,1.03940937,4000.9,4000.0,0.7827]
[1733529626589,1.22488304,4001.0,4000.0,0.96882946]
[1733529626787,2.32833423,4000.9,4000.0,0.96882946]
[1733529627008,1.28892486,4000.8,4000.0,0.96882946]
[1733529627211,1.28892486,4000.7,4000.0,0.96882946]
[1733529627521,1.03940937,4000.8,4000.0,0.96882946]
[1733529627927,1.28883923,4000.7,4000.0,0.96882946]
[1733529628221,1.03940937,4000.8,4000.2,0.8183]
[1733529628450,2.32834689,4000.7,4000.2,0.8183]
[1733529628758,1.28879861,4000.6,4000.2,1.89689458]
[1733529629045,1.03940937,4000.7,4000.2,0.8183]
[1733529629209,1.03940937,4000.5,4000.2,0.8183]
[1733529629405,1.03940937,4000.6,4000.2,0.8183]
[1733529629610,2.32805761,4000.5,3999.6,0.8183]
[1733529629922,2.32805761,4000.4,3999.6,0.8183]
[1733529630123,1.28864824,4000.3,3999.6,0.8183]
[1733529630437,1.03940937,4000.4,3999.6,0.8183]
[1733529630608,1.03940937,4000.5,3999.6,0.8183]
[1733529630810,1.03940937,4000.3,3999.6,0.8183]
[1733529631031,1.28858289,4000.2,3999.6,0.8183]
[1733529631231,1.03940937,4000.3,3999.6,0.8183]
[1733529631435,1.28874227,4000.2,3999.6,0.8183]
[1733529631613,1.03940937,4000.3,3999.6,0.8183]
[1733529632008,0.1853687,4000.6,3999.6,0.8183]
[1733529632009,1.03940937,4000.4,4000.2,0.8179]
[1733529632239,1.03940937,4000.6,4000.2,0.8179]
[1733529632661,1.03940937,4000.8,4000.2,0.8179]
[1733529632863,1.03940937,4000.9,4000.4,1.07859458]
[1733529633083,1.28851244,4000.8,4000.4,1.07859458]
[1733529633286,1.03940937,4001.0,4000.4,1.26824404]
[1733529633574,3.40842326,4001.6,4000.4,1.26824404]
[1733529633575,1.03940937,4001.1,4000.4,1.26824404]
[1733529634170,1.2883468,4001.0,4000.2,0.8179]
[1733529634473,1.03940937,4000.8,3999.6,1.07859458]
[1733529634678,2.32754901,4000.7,3999.7,0.8179]
[1733529634891,1.28813964,4000.6,3999.7,0.8179]
[1733529635051,1.03940937,4000.7,4000.0,3.0]
[1733529635257,1.28792172,4000.6,4000.0,3.0]
[1733529635452,2.3272813,4000.5,4000.0,3.0]
[1733529635651,0.85848475,4000.4,4000.0,3.0]
[1733529635838,0.85842398,4000.3,4000.0,3.0]
[1733529636189,1.03940937,4000.5,4000.0,3.0]
[1733529636343,3.18549927,4000.4,4000.0,3.0]
[1733529636544,0.18521059,4000.7,4000.0,3.0]
[1733529636545,0.85843596,4000.3,4000.0,3.0]
[1733529636739,1.28757356,4000.4,4000.0,3.0]
[1733529637046,0.85841732,4000.3,4000.0,3.0]
[1733529637403,1.03940937,4000.4,4000.0,3.0]
[1733529637549,1.03940937,4000.5,4000.0,3.0]
[1733529637879,2.14636737,4000.4,4000.0,3.0]
[1733529638178,0.85854717,4000.3,4000.0,3.0]
[1733529638384,1.28777751,4000.4,4000.0,3.0]
[1733529638584,0.85849637,4000.3,4000.0,3.0]
[1733529638890,1.28776392,4000.4,4000.0,3.0]
[1733529639187,1.03940937,4000.5,4000.0,3.0]
[1733529639188,0.8585109,4000.3,4000.0,3.0]
[1733529639342,1.28782057,4000.4,4000.0,3.0]
[1733529639542,1.03940937,4000.5,4000.0,3.0]
[1733529639791,1.03940937,4000.7,4000.1,0.8179]
[1733529640036,0.85860613,4000.6,4000.1,0.8179]
[1733529640339,1.03940937,4000.8,4000.1,0.8179]
[1733529640502,1.03940937,4000.6,4000.1,0.8179]
[1733529640694,1.03940937,4000.7,4000.1,0.8179]
[1733529640916,2.14633976,4000.6,4000.1,0.8179]
[1733529641110,1.03940937,4000.7,4000.1,0.8179]
[1733529641342,0.85855431,4000.6,4000.1,0.8179]
[1733529641556,1.03940937,4000.8,4000.1,0.8179]
[1733529641557,1.47334335,4000.7,4000.1,0.8179]
[1733529641851,0.85854058,4000.6,4000.1,0.8179]
[1733529642050,1.03940937,4000.7,4000.1,0.8179]
[1733529642222,2.33206296,4000.6,4000.1,0.8179]
[1733529642425,1.04423118,4000.5,4000.1,0.8179]
[1733529642610,1.03940937,4000.6,4000.1,0.8179]
[1733529642955,1.55911405,4000.8,4000.1,0.8179]
[1733529642956,1.28774629,4000.7,4000.1,0.8179]
[1733529643114,1.03940937,4000.8,4000.1,0.8179]
[1733529643418,2.33171223,4000.7,4000.1,0.8179]
[1733529643625,0.18564182,4000.6,4000.1,0.8179]
[1733529643819,1.03940937,4000.8,4000.1,0.8179]
[1733529644019,1.04417333,4000.7,4000.1,0.8179]
[1733529644231,0.18576896,4000.6,4000.1,0.8179]
[1733529644432,0.29731718,4000.9,4000.1,0.8179]
[1733529644611,1.044199,4000.8,4000.1,0.8179]
[1733529644812,1.33672655,4001.1,4000.2,0.38179]
[1733529645056,0.85839794,4001.0,4000.3,0.8179]
[1733529645234,0.18582495,4000.9,4000.3,0.8179]
[1733529645437,1.03940937,4001.2,4000.3,0.8179]
[1733529645608,1.55911405,4001.4,4000.3,0.8179]
[1733529645609,1.04419732,4001.1,4000.3,0.8179]
[1733529645815,1.04419732,4001.1,4000.2,0.38179]
[1733529645816,0.18585279,4001.0,4000.5,0.8179]
[1733529646013,1.03940937,4001.3,4000.6,0.31546192]
[1733529646347,0.18585707,4001.2,4000.7,0.8179]
[1733529646551,0.18585707,4001.1,4000.7,0.8179]
[1733529646753,0.29736436,4001.4,4000.7,0.8179]
[1733529647056,1.04414649,4001.3,4000.7,0.8179]
[1733529647349,0.18585499,4001.2,4000.7,0.8179]
[1733529647555,0.18585499,4001.1,4000.7,0.8179]
[1733529647852,1.28715008,4001.3,4000.7,1.16490811]
[1733529648022,0.18584783,4001.2,4000.7,0.34700811]
[1733529648223,0.18584783,4001.1,4000.8,3.14811917]
[1733529648424,0.29730478,4001.4,4000.8,3.14811917]
[1733529648653,0.18581479,4001.3,4000.8,3.14811917]
[1733529648854,2.32622849,4001.6,4000.8,3.4976319]
[1733529649044,1.04367547,4001.5,4000.8,3.4976319]
[1733529649214,0.18581609,4001.4,4000.8,3.4976319]
[1733529649422,0.18581609,4001.3,4000.8,3.4976319]
[1733529649613,1.58413032,4001.6,4000.8,3.4976319]
[1733529649812,0.2973112,4001.6,4000.8,3.4976319]
[1733529650031,0.85774159,4001.5,4000.8,3.4976319]
[1733529650230,1.58413032,4001.6,4000.8,1.16091273]
[1733529650563,1.03940937,4001.7,4000.8,0.8114]
[1733529650564,3.48121863,4001.5,4000.8,0.8114]
[1733529650714,0.85767894,4001.4,4000.8,0.8114]
[1733529651043,2.62346154,4001.5,4000.8,0.8114]
[1733529651230,1.15515866,4001.4,4000.8,0.8114]
[1733529651428,0.2973112,4001.4,4000.8,0.8114]
[1733529651617,0.85776551,4001.3,4000.8,0.8114]
[1733529652352,1.15504221,4001.2,4000.1,0.8023]
[1733529652555,1.15492188,4001.1,4000.1,0.8023]
[1733529652856,3.48107222,4001.0,4000.1,0.8023]
[1733529653023,1.15492188,4000.9,4000.1,0.8023]
[1733529653224,0.2972767,4000.9,4000.1,0.8023]
[1733529653436,1.58367567,4000.9,4000.1,0.8023]
[1733529653764,0.85749354,4000.8,4000.1,0.8023]
[1733529654124,1.58367567,4000.9,4000.1,0.8023]
[1733529654324,1.28639897,4000.9,4000.1,0.8023]
[1733529654548,1.5835978,4000.9,4000.1,1.16504391]
[1733529654754,7.53940937,4001.0,4000.1,1.16504391]
[1733529654954,0.85768401,4000.9,4000.1,1.16504391]
[1733529655119,1.28648603,4000.9,4000.1,1.16504391]
[1733529655324,2.14469801,4000.8,4000.1,1.16504391]
[1733529655624,1.28683213,4000.8,4000.2,0.41650439]
[1733529656026,2.62350577,4001.0,4000.2,0.41650439]
[1733529656358,1.55911405,4001.2,4000.3,0.8023]
[1733529656359,1.03940937,4001.1,4000.3,0.8023]
[1733529656561,0.29718017,4001.2,4000.3,0.8023]
[1733529656562,1.03940937,4001.2,4000.3,0.8023]
[1733529656736,1.03940937,4001.3,4000.5,0.8023]
[1733529656922,0.85849073,4001.2,4000.5,0.8023]
[1733529657123,1.28782239,4001.3,4000.5,0.8023]
[1733529657337,1.93664187,4001.2,4000.5,0.8023]
[1733529657559,1.85642653,4001.4,4000.5,0.8023]
[1733529657560,1.56e-06,4001.1,4000.5,0.8023]
[1733529657771,1.85642653,4001.4,4000.5,0.8023]
[1733529658064,1.71710797,4001.7,4000.5,0.8023]
[1733529658065,1.85642653,4001.5,4000.5,0.8023]
[1733529658271,1.55911405,4001.4,4000.5,0.8023]
[1733529658421,1.85642653,4001.5,4000.5,0.8023]
[1733529658623,1.55911405,4001.5,4000.5,0.8023]
[1733529658865,1.85642653,4001.5,4000.6,2.33671917]
[1733529659162,0.29731248,4001.8,4000.7,0.8023]
[1733529659365,0.29731248,4001.7,4000.7,0.8023]
[1733529659549,2.0791201,4001.8,4000.9,0.8023]
[1733529659727,2.01442045,4001.8,4000.9,0.8023]
[1733529659928,0.29731248,4001.7,4000.9,0.8023]
[1733529660459,2.01442045,4001.7,4000.9,0.8023]
[1733529661273,4.09354055,4001.7,4000.9,0.8023]
[1733529661445,4.09354055,4001.8,4001.1,0.8023]
[1733529661628,0.1857908,4001.7,4001.4,2.33671917]
[1733529661829,0.18581392,4002.1,4001.5,0.8023]
[1733529662029,2.0791201,4002.6,4001.5,0.8023]
[1733529662271,2.0791201,4002.4,4001.5,0.8023]
[1733529662479,2.20313409,4002.5,4001.5,0.8023]
[1733529662480,0.18581849,4002.3,4001.5,0.8023]
[1733529662677,4.0964357,4002.5,4001.6,0.8023]
[1733529662678,0.18581849,4002.2,4001.6,0.8023]
[1733529662965,3.79912612,4002.4,4001.6,0.8023]
[1733529663127,2.0791201,4002.2,4000.4,2.33671917]
[1733529663333,3.98486604,4002.1,4000.6,0.8023]
[1733529663555,3.98486604,4002.0,4000.6,0.8023]
[1733529663762,0.18573992,4001.9,4000.6,0.8023]
[1733529663927,0.18573992,4001.8,4000.6,0.8023]
[1733529664129,0.18573992,4001.7,4000.6,0.8023]
[1733529664388,0.18573992,4001.6,4000.6,0.8023]
[1733529664740,0.18573992,4001.5,4000.6,0.8023]
[1733529665052,0.8259,4001.9,4000.6,0.8023]
[1733529665053,3.80105532,4001.7,4000.6,0.8023]
[1733529665333,0.18573664,4001.6,4000.6,0.8023]
[1733529665549,0.18573664,4001.5,4000.6,0.8023]
[1733529665752,0.29730958,4001.8,4000.6,0.8023]
[1733529665753,0.18573664,4001.4,4000.6,0.8023]
[1733529665976,0.18573664,4001.3,4000.6,0.8023]
[1733529666268,0.18572446,4001.2,4000.6,0.8023]
[1733529666476,2.0177325,4001.6,4000.6,0.8023]
[1733529666675,0.18574812,4001.5,4000.6,0.8023]
[1733529666834,0.18574812,4001.4,4000.6,0.8023]
[1733529667031,0.18574812,4001.3,4000.6,0.8023]
[1733529667236,4.0983649,4001.6,4000.6,0.8023]
[1733529667468,1.04019895,4001.2,4000.6,0.8023]
[1733529667648,1.29017135,4001.1,4000.6,0.8023]
[1733529667843,1.04019895,4001.2,4000.6,0.8023]
[1733529668078,1.29014921,4001.1,4000.6,0.8023]
[1733529668278,1.29017147,4001.0,4000.6,0.8023]
[1733529668485,1.29014897,4000.9,4000.2,0.8274]
[1733529668654,1.04019895,4000.7,4000.2,0.8274]
[1733529668843,1.28999821,4000.6,4000.2,0.8274]
[1733529669040,1.04019895,4000.7,4000.2,0.8274]
[1733529669379,2.33004276,4000.6,4000.2,0.8274]
[1733529669741,1.28984381,4000.5,4000.2,0.8274]
[1733529669891,1.04019895,4000.6,4000.2,1.21014]
[1733529670087,1.04019895,4000.6,4000.2,0.8274]
[1733529670256,1.28959055,4000.5,4000.2,0.8274]
[1733529670455,1.04019895,4000.6,4000.2,0.8274]
[1733529670690,1.28954762,4000.5,4000.2,0.8274]
[1733529670982,1.04019895,4000.6,4000.2,0.8274]
[1733529671194,1.28946538,4000.5,4000.2,0.8274]
[1733529671351,1.04019895,4000.6,4000.2,0.8274]
[1733529671554,0.7937,4000.4,4000.0,3.0]
[1733529671753,0.18567956,4000.3,4000.0,3.0]
[1733529671994,1.04019895,4000.1,4000.0,3.0]
[1733529672153,2.51519984,4000.1,4000.0,3.0]
[1733529672349,1.47500089,4000.1,4000.0,3.0]
[1733529673098,7.97500089,4000.1,4000.0,3.0]
[1733529673607,7.97500089,4000.1,4000.0,1.15001142]
[1733529673608,9.53516151,4000.1,4000.0,1.15001142]
[1733529673803,9.69385149,4000.1,4000.0,1.15001142]
[1733529673964,9.99076423,4000.1,4000.0,1.15001142]
[1733529674395,9.53366363,4000.1,4000.0,1.15001142]
[1733529675704,8.27154843,4000.1,4000.0,1.15001142]
[1733529675903,12.07066192,4000.1,4000.0,1.15001142]
[1733529676064,12.07066192,4000.1,3999.1,0.7887]
[1733529676065,12.86436192,4000.1,3999.1,0.7887]
[1733529676403,1.03889403,3999.6,3999.1,0.7887]
[1733529676698,1.55834104,3999.8,3999.1,0.7887]
[1733529676699,1.47384242,3999.7,3999.1,0.7887]
[1733529676865,1.28810908,3999.6,3999.1,0.7887]
[1733529677063,1.03889403,3999.7,3999.1,1.10124192]
[1733529677465,0.85869729,3999.6,3999.1,1.10124192]
[1733529677706,1.28803568,3999.7,3999.1,1.10124192]
[1733529678076,0.85872805,3999.6,3999.1,1.10124192]
[1733529678267,1.22421055,3999.9,3999.1,1.10124192]
[1733529678479,2.14683601,3999.8,3999.1,0.7887]
[1733529678678,0.85858259,3999.7,3999.1,0.7887]
[1733529678879,1.28787589,3999.7,3999.1,0.7887]
[1733529679222,0.7937,3999.5,3998.4,0.7887]
[1733529679528,1.03889403,3999.2,3998.4,0.7887]
[1733529679738,0.85858338,3999.1,3998.4,0.7887]
[1733529679877,0.85828039,3999.0,3998.4,0.7887]
[1733529680083,2.32676992,3999.1,3998.4,0.7887]
[1733529680388,1.47309051,3999.2,3998.4,0.7887]
[1733529680597,7.53889403,3999.3,3998.4,0.7887]
[1733529680791,2.1447539,3999.2,3998.4,0.7887]
[1733529681027,6.5,3999.1,3998.4,0.7887]
[1733529681516,0.85755716,3999.0,3998.0,0.7887]
[1733529681718,0.7937,3998.9,3998.0,0.7887]
[1733529681929,2.87517965,3998.9,3997.7,0.7887]
[1733529682085,6.5,3998.6,3997.7,0.7887]
[1733529682497,0.85742091,3998.5,3997.7,0.7887]
[1733529682689,6.5,3998.6,3997.7,0.7887]
[1733529682690,7.53889403,3998.6,3997.7,0.7887]
[1733529682979,6.5,3998.3,3997.7,0.7887]
[1733529684959,6.5,3998.3,3997.7,3.7887]
[1733529685159,0.7937,3998.9,3997.8,0.61254192]
[1733529686018,7.2937,3998.9,3997.8,0.61254192]
[1733529686747,6.5,3998.9,3998.1,0.7887]
[1733529687053,6.5,3999.3,3998.1,0.7887]
[1733529687258,6.5,3999.3,3998.2,0.61254192]
[1733529687855,6.5,3999.3,3998.3,0.7887]
[1733529688161,6.5,3999.4,3998.3,0.7887]
[1733529689045,6.5,3999.1,3998.3,0.7887]
[1733529689971,0.7937,3999.5,3998.3,0.7887]
[1733529690153,6.5,3998.9,3998.3,0.7887]
[1733529691969,7.3187,3998.9,3998.3,0.7887]
[1733529692174,7.3187,3998.9,3996.3,0.1]
[1733529692175,7.3187,3998.9,3997.3,0.819]
[1733529692348,7.3187,3998.9,3997.5,0.819]
[1733529693330,0.18466097,3998.8,3997.5,0.819]
[1733529693754,7.3187,3998.9,3997.5,0.819]
[1733529693955,6.5,3998.4,3997.5,0.819]
[1733529695045,6.5,3998.8,3997.5,0.819]
[1733529695348,6.5,3998.8,3997.4,0.31557192]
[1733529695349,0.18477669,3998.7,3997.7,0.819]
[1733529695562,6.5,3998.8,3997.7,0.819]
[1733529696272,6.5,3998.9,3997.8,0.819]
[1733529697283,6.5,3999.2,3997.8,0.819]
[1733529697474,0.26302929,3999.1,3997.8,0.819]
[1733529697636,0.26302929,3999.1,3997.9,0.8323]
[1733529698066,6.76303134,3999.1,3997.9,0.8323]
[1733529698234,0.26303134,3999.0,3997.9,0.8323]
[1733529698432,0.18497408,3998.9,3997.9,0.8323]
[1733529698882,0.26303134,3999.0,3997.9,0.8323]
[1733529699083,0.94947408,3998.9,3997.6,0.8323]
[1733529699370,0.7645,3998.3,3996.7,0.8323]
[1733529699587,0.7645,3998.3,3996.5,2.33671917]
[1733529699588,0.26303134,3998.2,3996.9,0.8323]
[1733529699749,0.18497408,3998.1,3997.0,0.7823]
[1733529700083,1.03889403,3998.9,3997.1,0.02501469]
[1733529700084,6.76303134,3998.5,3997.1,0.02501469]
[1733529700259,0.18497408,3998.4,3996.9,2.33671917]
[1733529700440,0.18497408,3998.3,3996.9,2.33671917]
[1733529700639,0.18524306,3998.3,3997.0,0.26536211]
[1733529700879,0.1852502,3998.4,3997.0,3.26536211]
[1733529701043,0.7645,3998.9,3997.0,3.26536211]
[1733529701044,6.5,3998.6,3997.0,3.26536211]
[1733529701236,0.18526814,3998.5,3997.3,2.33671917]
[1733529701438,6.5,3998.6,3997.7,2.33671917]
[1733529701673,6.5,3998.6,3997.8,3.23367192]
[1733529702280,0.7645,3999.6,3997.8,3.23367192]
[1733529702281,6.5,3999.4,3997.8,3.23367192]
[1733529702576,0.56023567,3999.3,3997.8,3.23367192]
[1733529702743,0.56023567,3999.2,3997.9,0.8323]
[1733529702953,0.56023567,3999.1,3997.9,0.8323]
[1733529703143,0.26350489,3999.0,3998.1,0.8323]
[1733529703449,0.26350489,3998.9,3998.1,0.8323]
[1733529703686,0.26350489,3998.8,3998.1,0.8323]
[1733529703895,0.18545674,3998.7,3998.1,0.8323]
[1733529704211,0.7645,3999.6,3998.1,0.8323]
[1733529704212,0.18545674,3998.6,3998.1,0.8323]
[1733529704524,0.29673078,3999.1,3998.1,0.8323]
[1733529704827,0.56034944,3999.0,3998.1,0.8323]
[1733529705012,0.56034944,3998.9,3998.1,0.8323]
[1733529705212,0.56034944,3998.8,3998.1,0.8323]
[1733529705376,0.26361866,3998.7,3998.1,0.8323]
[1733529705716,0.26361866,3998.6,3998.1,0.8323]
[1733529705878,0.13554207,3998.5,3998.1,1.3029241]
[1733529706080,0.29700983,3998.8,3998.1,1.3029241]
[1733529706315,0.07805265,3998.7,3998.1,1.3029241]
[1733529706524,6.5,3999.2,3998.1,1.3029241]
[1733529706525,0.07805265,3998.6,3998.1,1.3029241]
[1733529706812,0.29710403,3999.0,3998.1,1.3029241]
[1733529707017,0.37515682,3998.9,3998.2,0.19431932]
[1733529707311,0.37515682,3998.8,3998.2,0.19431932]
[1733529707479,0.07805279,3998.7,3998.2,0.19431932]
[1733529707676,0.07805279,3998.6,3998.2,0.19431932]
[1733529707917,0.07805383,3998.5,3998.2,0.19431932]
[1733529708122,0.07805383,3998.5,3998.1,0.8323]
[1733529708326,0.8238,3998.9,3998.1,0.8323]
[1733529708327,0.07805383,3998.4,3998.1,0.8323]
[1733529708620,0.07805383,3998.4,3995.5,1.2942051]
[1733529708621,0.37538569,3998.3,3997.0,0.7841]
[1733529708807,1.86269403,3998.9,3997.0,0.7841]
[1733529708808,0.37538569,3998.2,3997.0,0.7841]
[1733529709111,1.03889403,3998.7,3997.0,0.7841]
[1733529709112,0.37538569,3998.1,3997.0,0.7841]
[1733529709320,0.37538569,3998.0,3997.2,0.7841]
[1733529709520,0.07805383,3997.9,3997.3,2.33671917]
[1733529709731,6.5,3998.5,3997.3,2.33671917]
[1733529709732,0.29733685,3998.4,3997.4,0.7841]
[1733529709881,0.29733685,3998.4,3997.1,0.31208192]
[1733529709882,0.37539733,3998.3,3997.7,2.33671917]
[1733529710219,1.71181413,3999.1,3997.1,0.31208192]
[1733529710220,6.5,3999.2,3998.2,0.7841]
[1733529710380,0.37541783,3999.1,3998.3,0.7841]
[1733529710580,0.07804349,3999.0,3998.3,0.7841]
[1733529710906,0.07804349,3998.9,3998.6,3.0]
[1733529711125,6.5,3999.2,3998.6,3.0]
[1733529711126,0.8672068,3999.9,3999.0,0.7841]
[1733529711323,0.37545489,3999.8,3999.0,0.7841]
[1733529711642,0.07803336,3999.7,3999.1,0.7841]
[1733529711803,0.8672068,3999.9,3999.4,0.762]
[1733529712005,1.03889403,4000.5,3999.4,0.762]
[1733529712229,1.55834104,4000.7,3999.4,0.762]
[1733529712230,0.37526059,4000.4,3999.4,0.762]
[1733529712408,0.07801987,4000.3,3999.4,0.762]
[1733529712610,0.29724072,4000.6,3999.5,0.762]
[1733529712920,0.37525925,4000.5,3999.5,0.762]
[1733529713104,0.37525925,4000.4,3999.5,0.762]
[1733529713305,0.93511796,4000.3,3999.5,0.762]
[1733529713540,0.07801853,4000.2,3999.5,0.762]
[1733529713750,1.03889403,4000.5,3999.5,0.762]
[1733529713898,0.07802089,4000.4,3999.5,0.762]
[1733529714237,1.03889403,4000.6,3999.5,0.762]
[1733529714238,0.07802089,4000.3,3999.5,0.762]
[1733529714443,0.07802089,4000.3,3999.1,0.762]
[1733529714444,2.14181366,4000.2,3999.1,0.762]
[1733529714654,1.03889403,4000.0,3999.1,0.762]
[1733529714796,3.18108876,3999.9,3999.1,0.762]
[1733529715000,1.03889403,3999.7,3998.4,2.33671917]
[1733529715305,1.63187789,3999.6,3998.7,0.762]
[1733529715512,3.18108876,3999.5,3998.7,0.762]
[1733529715696,3.25913832,3999.4,3998.1,0.762]
[1733529715992,1.03889403,3999.1,3998.1,0.762]
[1733529716197,1.03889403,3998.9,3998.1,0.762]
[1733529716395,3.25913832,3998.8,3998.1,0.762]
[1733529716595,2.22076699,3998.7,3998.1,0.762]
[1733529716837,1.03889403,3998.9,3998.1,0.762]
[1733529717009,0.93529125,3998.8,3998.1,0.762]
[1733529717212,2.22114795,3998.7,3998.1,0.762]
[1733529717418,1.03889403,3998.8,3998.1,0.762]
[1733529717740,1.28597837,3998.8,3998.1,0.762]
[1733529717894,0.85729775,3998.7,3998.1,0.762]
[1733529718095,2.14313707,3998.6,3996.5,0.762]
[1733529718339,2.14313707,3998.6,3996.8,0.762]
[1733529718340,2.91777899,3998.5,3996.8,0.762]
[1733529718634,2.50131,3997.9,3996.8,0.762]
[1733529718849,3.18167302,3997.8,3996.8,0.762]
[1733529719013,1.03889403,3998.0,3996.8,0.762]
[1733529719197,2.40685687,3997.9,3996.8,0.762]
[1733529719397,1.03889403,3997.7,3996.8,0.762]
[1733529719603,2.59723507,3998.0,3997.3,0.762]